Workbook

Sheet 环卫
A1: 贵阳市综合行政执法局2023年公开招聘局属事业单位工作人员体检合格暨进入考核环节人员名单（第一批）
A2: 序号 | B2: 姓名 | C2: 准考证号 | D2: 单位 | E2: 报考岗位及代码 | F2: 笔试成绩 | G2: 笔试成绩（百分制） | H2: 笔试成绩60% | I2: 面试成绩 | J2: 面试成绩40% | K2: 笔试、面试成绩 | L2: 综合排名 | M2: 体检情况 | N2: 是否进入考察环节
A3: 1 | B3: 孙琦 | C3: 1152012300409 | D3: 贵阳市环境卫生管理服务中心 | E3: 01管理岗位 | F3: 230.5 | G3: =F3/3 -> 76.83 | H3: =G3*60% -> 46.10 | I3: 78.4 | J3: =I3*40% -> 31.36 | K3: =H3+J3 -> 77.46 | L3: 1 | M3: 合格 | N3: 是
A4: 2 | B4: 杜欢欢 | C4: 1152012302108 | D4: 贵阳市环境卫生管理服务中心 | E4: 01管理岗位 | F4: 227 | G4: =F4/3 -> 75.67 | H4: =G4*60% -> 45.40 | I4: 79.8 | J4: =I4*40% -> 31.92 | K4: =H4+J4 -> 77.32 | L4: 2 | M4: 合格 | N4: 是
A6: 1 | B6: 陈思翰 | C6: 1152014601730 | D6: 贵阳市城市绿化服务中心 | E6: 01管理岗位 | F6: 208 | G6: =F6/3 -> 69.33 | H6: 41.60 | I6: 91.2 | J6: =I6*0.4 -> 36.48 | K6: =J6+H6 -> 78.08 | L6: 1 | M6: 自愿放弃 | N6: 否
A7: 2 | B7: 邹思婧 | C7: 1152014600319 | D7: 贵阳市城市绿化服务中心 | E7: 02管理岗位 | F7: 203.5 | G7: =F7/3 -> 67.83 | H7: 40.70 | I7: 86 | J7: =I7*0.4 -> 34.40 | K7: =J7+H7 -> 75.10 | L7: 1 | M7: 合格 | N7: 是
A8: 3 | B8: 曾涛 | C8: 1152014603223 | D8: 贵阳市城市绿化服务中心 | E8: 02管理岗位 | F8: 190 | G8: =F8/3 -> 63.33 | H8: 38.00 | I8: 84 | J8: =I8*0.4 -> 33.60 | K8: =J8+H8 -> 71.60 | L8: 2 | M8: 合格 | N8: 是
A9: 4 | B9: 张清 | C9: 1152014603423 | D9: 贵阳市城市绿化服务中心 | E9: 03管理岗位 | F9: 202 | G9: =F9/3 -> 67.33 | H9: 40.40 | I9: 81.6 | J9: =I9*0.4 -> 32.64 | K9: =J9+H9 -> 73.04 | L9: 1 | M9: 合格 | N9: 是
